[Event "FIDE Women World Blitz 2021"]
[Site "Warsaw"]
[Date "2021.12.29"]
[Round "6.4"]
[White "Jakubowska, Anna"]
[Black "Atalik, Ekaterina"]
[Result "0-1"]
[ECO "B12"]
[WhiteElo "2106"]
[BlackElo "2430"]
[Annotator "NA"]
[PlyCount "68"]
[EventDate "2021.12.29"]
[EventType "swiss"]
[EventCountry "POL"]
[Tiebreak "Cut1 Buchholz"]
[SourceTitle "playchess.com"]
[Source "ChessBase"]
[SourceQuality "1"]
[TimeControl "180+2"]

1. e4 {[%emt 0:00:01]} c6 {[%emt 0:00:00]} 2. d4 {[%emt 0:00:01]} d5 {[%emt 0:
00:01]} 3. e5 {[%emt 0:00:02]} c5 {[%emt 0:00:02]} 4. dxc5 {[%emt 0:00:01]} Nc6
{[%emt 0:00:00]} 5. Bb5 {[%emt 0:00:02]} e6 {[%emt 0:00:03]} 6. a3 {[%emt 0:00:
07]} Bxc5 {[%emt 0:00:03]} 7. Bxc6+ {[%emt 0:00:08]} bxc6 {[%emt 0:00:02]} 8.
b4 {[%emt 0:00:02]} Bb6 {[%emt 0:00:03]} 9. Ne2 {[%emt 0:00:18]} Ne7 {[%emt 0:
00:03]} 10. O-O {[%emt 0:00:03]} O-O {[%emt 0:00:01]} 11. Bb2 {[%emt 0:00:01]}
c5 {[%emt 0:00:04]} 12. Nd2 {[%emt 0:00:17]} Ng6 {[%emt 0:00:08]} 13. g3 {
[%emt 0:00:14]} Ba6 {[%emt 0:00:11]} 14. Re1 {[%emt 0:00:05]} Qc7 {[%emt 0:00:
09]} 15. Nc1 {[%emt 0:00:20]} d4 {[%emt 0:00:06]} 16. bxc5 {[%emt 0:00:12]}
Bxc5 {[%emt 0:00:01]} 17. Ndb3 {[%emt 0:00:11]} Bb6 {[%emt 0:00:02]} 18. Bxd4 {
[%emt 0:00:17]} Rfd8 {[%emt 0:00:07]} 19. c3 {[%emt 0:00:02]} Bb7 {[%emt 0:00:
03]} 20. Nd3 {[%emt 0:00:22]} Qc6 {[%emt 0:00:11]} 21. f3 {[%emt 0:00:01]} Qxf3
{[%emt 0:00:04]} 22. Qxf3 {[%emt 0:00:01]} Bxf3 {[%emt 0:00:02]} 23. Kf2 {
[%emt 0:00:05]} Bd5 {[%emt 0:00:02]} 24. Nbc5 {[%emt 0:00:04]} Rac8 {[%emt 0:
00:03]} 25. Rab1 {[%emt 0:00:05]} Bc4 {[%emt 0:00:04]} 26. Rb4 {[%emt 0:00:11]}
Bd5 {[%emt 0:00:10]} 27. Ne4 {[%emt 0:00:21]} Bxd4+ {[%emt 0:00:12]} 28. Rxd4 {
[%emt 0:00:02]} Ne7 {[%emt 0:00:05]} 29. Nb4 {[%emt 0:00:12]} Nf5 {[%emt 0:00:
07]} 30. Rd3 {[%emt 0:00:08]} Bxe4 {[%emt 0:00:07]} 31. Rxe4 {[%emt 0:00:00]}
Rxd3 {[%emt 0:00:02]} 32. Nxd3 {[%emt 0:00:01]} Rxc3 {[%emt 0:00:02]} 33. h4 {
[%emt 0:00:04]} Rxd3 {[%emt 0:00:03]} 34. Ra4 {[%emt 0:00:01]} Rd7 {[%emt 0:00:
01]} 0-1

[Event "FIDE Women World Blitz 2021"]
[Site "Warsaw"]
[Date "2021.12.29"]
[Round "6.5"]
[White "Paehtz, Elisabeth"]
[Black "Bulmaga, Irina"]
[Result "1/2-1/2"]
[ECO "D00"]
[WhiteElo "2485"]
[BlackElo "2405"]
[Annotator "ChessBase"]
[PlyCount "78"]
[EventDate "2021.12.29"]
[EventType "swiss"]
[EventCountry "POL"]
[Tiebreak "Cut1 Buchholz"]
[SourceTitle "playchess.com"]
[Source "ChessBase"]
[SourceQuality "1"]
[TimeControl "180+2"]

1. d4 {[%emt 0:00:01]} Nf6 {[%emt 0:00:02]} 2. Nc3 {[%emt 0:00:01]} d5 {
[%emt 0:00:04]} 3. Bf4 {[%emt 0:00:01]} e6 {[%emt 0:00:08]} 4. Nb5 {[%emt 0:00:
05]} Na6 {[%emt 0:00:01]} 5. e3 {[%emt 0:00:03]} Bb4+ {[%emt 0:00:05]} 6. c3 {
[%emt 0:00:02]} Be7 {[%emt 0:00:04]} 7. a4 {[%emt 0:00:02]} O-O {[%emt 0:00:06]
} 8. Nf3 {[%emt 0:00:02]} c6 {[%emt 0:00:04]} 9. Na3 {[%emt 0:00:01]} Bd6 {
[%emt 0:00:12]} 10. Ne5 {[%emt 0:00:06]} Nb8 {[%emt 0:00:00]} 11. Bd3 {[%emt 0:
00:02]} Qe7 {[%emt 0:00:12]} 12. Qf3 {[%emt 0:00:06]} Bxe5 {[%emt 0:00:08]} 13.
Bxe5 {[%emt 0:00:03]} Nbd7 {[%emt 0:00:09]} 14. Qh3 {[%emt 0:00:06]} h6 {
[%emt 0:00:13]} 15. Qg3 {[%emt 0:00:13]} Nxe5 {[%emt 0:00:17]} 16. Qxe5 {
[%emt 0:00:22]} Nd7 {[%emt 0:00:07]} 17. Qc7 {[%emt 0:00:04]} e5 {[%emt 0:00:
06]} 18. dxe5 {[%emt 0:00:06]} Qxe5 {[%emt 0:00:02]} 19. Qxe5 {[%emt 0:00:03]}
Nxe5 {[%emt 0:00:01]} 20. Be2 {[%emt 0:00:02]} a5 {[%emt 0:00:04]} 21. Nc2 {
[%emt 0:00:07]} Bf5 {[%emt 0:00:05]} 22. Nd4 {[%emt 0:00:02]} Bd3 {[%emt 0:00:
02]} 23. Rd1 {[%emt 0:00:33]} Bxe2 {[%emt 0:00:03]} 24. Kxe2 {[%emt 0:00:01]}
Nc4 {[%emt 0:00:01]} 25. b3 {[%emt 0:00:06]} Nd6 {[%emt 0:00:08]} 26. f3 {
[%emt 0:00:05]} Rad8 {[%emt 0:00:01]} 27. Kf2 {[%emt 0:00:02]} Rfe8 {[%emt 0:
00:01]} 28. Rhe1 {[%emt 0:00:01]} g6 {[%emt 0:00:06]} 29. Re2 {[%emt 0:00:04]}
Kg7 {[%emt 0:00:02]} 30. Red2 {[%emt 0:00:08]} Kf6 {[%emt 0:00:13]} 31. Nc2 {
[%emt 0:00:08]} Ke7 {[%emt 0:00:13]} 32. Rd3 {[%emt 0:00:01]} Rd7 {[%emt 0:00:
07]} 33. R1d2 {[%emt 0:00:01]} Red8 {[%emt 0:00:03]} 34. Rd1 {[%emt 0:00:02]}
Nf5 {[%emt 0:00:03]} 35. R1d2 {[%emt 0:00:09]} h5 {[%emt 0:00:01]} 36. Rd1 {
[%emt 0:00:02]} Ng7 {[%emt 0:00:01]} 37. Nd4 {[%emt 0:00:04]} Ne6 {[%emt 0:00:
06]} 38. Nxe6 {[%emt 0:00:06]} Kxe6 {[%emt 0:00:03]} 39. h4 {[%emt 0:00:05]}
Rd6 {[%emt 0:00:04]} 1/2-1/2

[Event "FIDE Women World Blitz 2021"]
[Site "Warsaw"]
[Date "2021.12.29"]
[Round "6.5"]
[White "Nurgali, Nazerke"]
[Black "Parol, Pola"]
[Result "1-0"]
[ECO "D38"]
[WhiteElo "2267"]
[BlackElo "1823"]
[Annotator "NA"]
[PlyCount "91"]
[EventDate "2021.12.29"]
[EventType "swiss"]
[EventCountry "POL"]
[Tiebreak "Cut1 Buchholz"]
[SourceTitle "playchess.com"]
[Source "ChessBase"]
[SourceQuality "1"]
[TimeControl "180+2"]

1. d4 {[%emt 0:00:01]} Nf6 {[%emt 0:00:00]} 2. Nf3 {[%emt 0:00:01]} e6 {
[%emt 0:00:01]} 3. c4 {[%emt 0:00:02]} d5 {[%emt 0:00:01]} 4. Nc3 {[%emt 0:00:
01]} Bb4 {[%emt 0:00:01]} 5. Bg5 {[%emt 0:00:01]} h6 {[%emt 0:00:03]} 6. Bxf6 {
[%emt 0:00:01]} Qxf6 {[%emt 0:00:02]} 7. e3 {[%emt 0:00:01]} O-O {[%emt 0:00:
05]} 8. Rc1 {[%emt 0:00:01]} c6 {[%emt 0:00:33]} 9. Bd3 {[%emt 0:00:03]} Nd7 {
[%emt 0:00:05]} 10. O-O {[%emt 0:00:05]} dxc4 {[%emt 0:00:01]} 11. Bxc4 {
[%emt 0:00:01]} e5 {[%emt 0:00:09]} 12. Ne4 {[%emt 0:00:30]} Qe7 {[%emt 0:00:
14]} 13. d5 {[%emt 0:00:19]} cxd5 {[%emt 0:00:31]} 14. Qxd5 {[%emt 0:00:11]}
Re8 {[%emt 0:00:19]} 15. a3 {[%emt 0:00:17]} Nb6 {[%emt 0:00:25]} 16. Qxf7+ {
[%emt 0:00:04]} Qxf7 {[%emt 0:00:04]} 17. Bxf7+ {[%emt 0:00:01]} Kxf7 {[%emt 0:
00:02]} 18. axb4 {[%emt 0:00:01]} Kf8 {[%emt 0:00:27]} 19. Nd6 {[%emt 0:00:14]}
Re6 {[%emt 0:00:05]} 20. Rfd1 {[%emt 0:00:06]} Bd7 {[%emt 0:00:17]} 21. Nxb7 {
[%emt 0:00:06]} Bc6 {[%emt 0:00:01]} 22. Nc5 {[%emt 0:00:06]} Re7 {[%emt 0:00:
10]} 23. Nh4 {[%emt 0:00:09]} Be8 {[%emt 0:00:02]} 24. Nf5 {[%emt 0:00:04]} Rf7
{[%emt 0:00:05]} 25. Ne6+ {[%emt 0:00:16]} Kg8 {[%emt 0:00:01]} 26. Nd6 {
[%emt 0:00:03]} Re7 {[%emt 0:00:04]} 27. Nc7 {[%emt 0:00:04]} Rb8 {[%emt 0:00:
04]} 28. Ndxe8 {[%emt 0:00:05]} Rbxe8 {[%emt 0:00:01]} 29. Nxe8 {[%emt 0:00:01]
} Rxe8 {[%emt 0:00:01]} 30. Rc7 {[%emt 0:00:03]} Ra8 {[%emt 0:00:05]} 31. h3 {
[%emt 0:00:03]} a5 {[%emt 0:00:00]} 32. b5 {[%emt 0:00:02]} Na4 {[%emt 0:00:02]
} 33. Rdd7 {[%emt 0:00:03]} Nxb2 {[%emt 0:00:02]} 34. Rxg7+ {[%emt 0:00:01]}
Kf8 {[%emt 0:00:01]} 35. Rh7 {[%emt 0:00:05]} Kg8 {[%emt 0:00:01]} 36. Rcg7+ {
[%emt 0:00:03]} Kf8 {[%emt 0:00:01]} 37. Rh8+ {[%emt 0:00:02]} Kxg7 {[%emt 0:
00:01]} 38. Rxa8 {[%emt 0:00:02]} Nc4 {[%emt 0:00:04]} 39. Rc8 {[%emt 0:00:05]}
Nb6 {[%emt 0:00:05]} 40. Rc7+ {[%emt 0:00:03]} Kf8 {[%emt 0:00:01]} 41. Rc6 {
[%emt 0:00:02]} Nd7 {[%emt 0:00:04]} 42. b6 {[%emt 0:00:04]} Ke7 {[%emt 0:00:
02]} 43. b7 {[%emt 0:00:03]} a4 {[%emt 0:00:02]} 44. Rc7 {[%emt 0:00:06]} Kd6 {
[%emt 0:00:01]} 45. Rxd7+ {[%emt 0:00:03]} Kxd7 {[%emt 0:00:01]} 46. b8=Q {
[%emt 0:00:03]} 1-0

[Event "FIDE Women World Blitz 2021"]
[Site "Warsaw"]
[Date "2021.12.29"]
[Round "6.6"]
[White "Buksa, Nataliya"]
[Black "Abdumalik, Zhansaya"]
[Result "1/2-1/2"]
[ECO "D00"]
[WhiteElo "2199"]
[BlackElo "2507"]
[Annotator "ChessBase"]
[PlyCount "78"]
[EventDate "2021.12.29"]
[EventType "swiss"]
[EventCountry "POL"]
[Tiebreak "Cut1 Buchholz"]
[SourceTitle "playchess.com"]
[Source "ChessBase"]
[SourceQuality "1"]
[TimeControl "180+2"]

1. d4 {[%emt 0:00:01]} Nf6 {[%emt 0:00:01]} 2. Nc3 {[%emt 0:00:00]} d5 {
[%emt 0:00:02]} 3. Bf4 {[%emt 0:00:01]} g6 {[%emt 0:00:02]} 4. e3 {[%emt 0:00:
01]} Bg7 {[%emt 0:00:01]} 5. h4 {[%emt 0:00:01]} h5 {[%emt 0:00:01]} 6. Nf3 {
[%emt 0:00:01]} O-O {[%emt 0:00:04]} 7. Be2 {[%emt 0:00:01]} c5 {[%emt 0:00:03]
} 8. Ne5 {[%emt 0:00:04]} Nc6 {[%emt 0:00:05]} 9. Qd2 {[%emt 0:00:24]} Qa5 {
[%emt 0:00:33]} 10. Nxc6 {[%emt 0:00:34]} bxc6 {[%emt 0:00:01]} 11. Be5 {
[%emt 0:00:01]} Bf5 {[%emt 0:00:18]} 12. O-O {[%emt 0:00:11]} Nd7 {[%emt 0:00:
08]} 13. Bxg7 {[%emt 0:00:02]} Kxg7 {[%emt 0:00:01]} 14. Bd3 {[%emt 0:00:33]}
Be6 {[%emt 0:00:07]} 15. a3 {[%emt 0:00:06]} c4 {[%emt 0:00:21]} 16. Be2 {
[%emt 0:00:02]} f5 {[%emt 0:00:08]} 17. b3 {[%emt 0:00:05]} Nf6 {[%emt 0:00:19]
} 18. bxc4 {[%emt 0:00:03]} dxc4 {[%emt 0:00:01]} 19. Rfd1 {[%emt 0:00:05]}
Rfd8 {[%emt 0:00:02]} 20. Bf3 {[%emt 0:00:02]} Rac8 {[%emt 0:00:05]} 21. Qe1 {
[%emt 0:00:07]} Nd5 {[%emt 0:00:14]} 22. Nxd5 {[%emt 0:00:08]} Qxe1+ {[%emt 0:
00:02]} 23. Rxe1 {[%emt 0:00:01]} cxd5 {[%emt 0:00:08]} 24. Reb1 {[%emt 0:00:
02]} Rb8 {[%emt 0:00:00]} 25. Kf1 {[%emt 0:00:09]} Kf6 {[%emt 0:00:17]} 26. Ke1
{[%emt 0:00:01]} Bf7 {[%emt 0:00:01]} 27. Kd2 {[%emt 0:00:07]} e5 {[%emt 0:00:
02]} 28. Kc3 {[%emt 0:00:03]} a5 {[%emt 0:00:12]} 29. dxe5+ {[%emt 0:00:28]}
Kxe5 {[%emt 0:00:01]} 30. Rd1 {[%emt 0:00:01]} Rb5 {[%emt 0:00:05]} 31. Rab1 {
[%emt 0:00:01]} Rdb8 {[%emt 0:00:01]} 32. Rxb5 {[%emt 0:00:05]} Rxb5 {[%emt 0:
00:01]} 33. g3 {[%emt 0:00:04]} Be6 {[%emt 0:00:02]} 34. Bg2 {[%emt 0:00:01]}
Bf7 {[%emt 0:00:09]} 35. Bf3 {[%emt 0:00:12]} Be8 {[%emt 0:00:04]} 36. Bg2 {
[%emt 0:00:02]} Bc6 {[%emt 0:00:01]} 37. Bf1 {[%emt 0:00:10]} Rb8 {[%emt 0:00:
08]} 38. Be2 {[%emt 0:00:01]} Ke6 {[%emt 0:00:02]} 39. Bf1 {[%emt 0:00:01]} Ke5
{[%emt 0:00:08]} 1/2-1/2

[Event "FIDE Women World Blitz 2021"]
[Site "Warsaw"]
[Date "2021.12.29"]
[Round "6.6"]
[White "Smirnova, Ekaterina"]
[Black "Kolaric, Spela"]
[Result "1-0"]
[ECO "D37"]
[WhiteElo "2196"]
[BlackElo "2178"]
[Annotator "NA"]
[PlyCount "90"]
[EventDate "2021.12.29"]
[EventType "swiss"]
[EventCountry "POL"]
[Tiebreak "Cut1 Buchholz"]
[SourceTitle "playchess.com"]
[Source "ChessBase"]
[SourceQuality "1"]
[TimeControl "180+2"]

1. d4 {[%emt 0:00:02]} Nf6 {[%emt 0:00:01]} 2. c4 {[%emt 0:00:01]} e6 {[%emt 0:
00:01]} 3. Nf3 {[%emt 0:00:01]} d5 {[%emt 0:00:01]} 4. Nc3 {[%emt 0:00:01]} Be7
{[%emt 0:00:01]} 5. Bf4 {[%emt 0:00:08]} O-O {[%emt 0:00:02]} 6. e3 {[%emt 0:
00:02]} c5 {[%emt 0:00:01]} 7. dxc5 {[%emt 0:00:05]} Bxc5 {[%emt 0:00:01]} 8.
cxd5 {[%emt 0:00:02]} Nxd5 {[%emt 0:00:01]} 9. Nxd5 {[%emt 0:00:05]} exd5 {
[%emt 0:00:03]} 10. Be2 {[%emt 0:00:11]} Bb4+ {[%emt 0:00:02]} 11. Nd2 {
[%emt 0:00:21]} d4 {[%emt 0:00:01]} 12. a3 {[%emt 0:00:10]} Ba5 {[%emt 0:00:37]
} 13. b4 {[%emt 0:00:03]} dxe3 {[%emt 0:00:10]} 14. Bxe3 {[%emt 0:00:04]} Bb6 {
[%emt 0:00:01]} 15. Nc4 {[%emt 0:00:14]} Bxe3 {[%emt 0:00:02]} 16. Nxe3 {
[%emt 0:00:03]} Nc6 {[%emt 0:00:01]} 17. O-O {[%emt 0:00:06]} Be6 {[%emt 0:00:
04]} 18. Bf3 {[%emt 0:00:06]} Rc8 {[%emt 0:00:03]} 19. Rc1 {[%emt 0:00:01]} Qb6
{[%emt 0:00:11]} 20. Nd5 {[%emt 0:00:13]} Qd8 {[%emt 0:00:31]} 21. Nf4 {
[%emt 0:00:14]} Qf6 {[%emt 0:00:13]} 22. Bxc6 {[%emt 0:00:16]} Rxc6 {[%emt 0:
00:10]} 23. Rxc6 {[%emt 0:00:02]} bxc6 {[%emt 0:00:01]} 24. Nxe6 {[%emt 0:00:
02]} Qxe6 {[%emt 0:00:00]} 25. Re1 {[%emt 0:00:01]} Qa2 {[%emt 0:00:04]} 26.
Qf3 {[%emt 0:00:09]} h6 {[%emt 0:00:05]} 27. g3 {[%emt 0:00:03]} Qd5 {[%emt 0:
00:12]} 28. Qxd5 {[%emt 0:00:07]} cxd5 {[%emt 0:00:01]} 29. Re7 {[%emt 0:00:00]
} Rd8 {[%emt 0:00:00]} 30. Kf1 {[%emt 0:00:05]} a5 {[%emt 0:00:09]} 31. b5 {
[%emt 0:00:09]} a4 {[%emt 0:00:01]} 32. b6 {[%emt 0:00:06]} Rb8 {[%emt 0:00:01]
} 33. b7 {[%emt 0:00:01]} f6 {[%emt 0:00:05]} 34. Ke2 {[%emt 0:00:03]} Kh7 {
[%emt 0:00:07]} 35. Kd3 {[%emt 0:00:01]} Kg6 {[%emt 0:00:04]} 36. Kd4 {[%emt 0:
00:02]} Rd8 {[%emt 0:00:05]} 37. Rc7 {[%emt 0:00:04]} Rb8 {[%emt 0:00:11]} 38.
Kxd5 {[%emt 0:00:02]} h5 {[%emt 0:00:01]} 39. h4 {[%emt 0:00:01]} Kf5 {[%emt 0:
00:01]} 40. Kc6 {[%emt 0:00:03]} Ke4 {[%emt 0:00:00]} 41. Rxg7 {[%emt 0:00:02]}
Kf3 {[%emt 0:00:01]} 42. Kc7 {[%emt 0:00:04]} Rf8 {[%emt 0:00:00]} 43. b8=Q {
[%emt 0:00:07]} Rxb8 {[%emt 0:00:01]} 44. Kxb8 {[%emt 0:00:01]} Kxf2 {[%emt 0:
00:01]} 45. Kc7 {[%emt 0:00:05]} f5 {[%emt 0:00:01]} 1-0

[Event "FIDE Women World Blitz 2021"]
[Site "Warsaw"]
[Date "2021.12.29"]
[Round "6.7"]
[White "Zhukova, Natalia"]
[Black "Nomin-Erdene, Davaademberel"]
[Result "1-0"]
[ECO "A10"]
[WhiteElo "2331"]
[BlackElo "2188"]
[Annotator "NA"]
[PlyCount "133"]
[EventDate "2021.12.29"]
[EventType "swiss"]
[EventCountry "POL"]
[Tiebreak "Cut1 Buchholz"]
[SourceTitle "playchess.com"]
[Source "ChessBase"]
[SourceQuality "1"]
[TimeControl "180+2"]

1. c4 {[%emt 0:00:01]} f5 {[%emt 0:00:01]} 2. Nc3 {[%emt 0:00:02]} Nf6 {
[%emt 0:00:01]} 3. Nf3 {[%emt 0:00:02]} g6 {[%emt 0:00:01]} 4. d3 {[%emt 0:00:
03]} d6 {[%emt 0:00:02]} 5. e4 {[%emt 0:00:04]} Nc6 {[%emt 0:00:22]} 6. exf5 {
[%emt 0:00:10]} gxf5 {[%emt 0:00:03]} 7. d4 {[%emt 0:00:05]} Bg7 {[%emt 0:00:
13]} 8. d5 {[%emt 0:00:12]} Ne5 {[%emt 0:00:04]} 9. Nd4 {[%emt 0:00:13]} c5 {
[%emt 0:00:11]} 10. Ne6 {[%emt 0:00:33]} Bxe6 {[%emt 0:00:03]} 11. dxe6 {
[%emt 0:00:02]} O-O {[%emt 0:00:59]} 12. Nd5 {[%emt 0:00:27]} Nc6 {[%emt 0:00:
42]} 13. Bd3 {[%emt 0:00:04]} Nxd5 {[%emt 0:00:17]} 14. cxd5 {[%emt 0:00:02]}
Nb4 {[%emt 0:00:08]} 15. Bb1 {[%emt 0:00:13]} Qa5 {[%emt 0:00:15]} 16. O-O {
[%emt 0:00:07]} c4 {[%emt 0:00:01]} 17. a3 {[%emt 0:00:46]} Nxd5 {[%emt 0:00:
02]} 18. Qe2 {[%emt 0:00:16]} Qc5 {[%emt 0:00:06]} 19. Ba2 {[%emt 0:00:01]} b5
{[%emt 0:00:00]} 20. Bg5 {[%emt 0:00:03]} Nf6 {[%emt 0:00:03]} 21. Rac1 {
[%emt 0:00:03]} Rac8 {[%emt 0:00:01]} 22. b3 {[%emt 0:00:02]} c3 {[%emt 0:00:
02]} 23. b4 {[%emt 0:00:01]} Qc6 {[%emt 0:00:01]} 24. Qd3 {[%emt 0:00:05]} d5 {
[%emt 0:00:06]} 25. Bxf6 {[%emt 0:00:01]} Rxf6 {[%emt 0:00:01]} 26. Bxd5 {
[%emt 0:00:02]} Qd6 {[%emt 0:00:01]} 27. Qxb5 {[%emt 0:00:02]} Rg6 {[%emt 0:00:
05]} 28. Qd7 {[%emt 0:00:02]} Rd8 {[%emt 0:00:03]} 29. Qxd6 {[%emt 0:00:03]}
Rxd6 {[%emt 0:00:01]} 30. Bb3 {[%emt 0:00:00]} Rd2 {[%emt 0:00:01]} 31. g3 {
[%emt 0:00:02]} Rg4 {[%emt 0:00:01]} 32. Kg2 {[%emt 0:00:02]} Re4 {[%emt 0:00:
02]} 33. Rc2 {[%emt 0:00:02]} Ree2 {[%emt 0:00:01]} 34. Rxd2 {[%emt 0:00:02]}
Rxd2 {[%emt 0:00:01]} 35. Rc1 {[%emt 0:00:11]} Bd4 {[%emt 0:00:02]} 36. Rc2 {
[%emt 0:00:01]} Rd1 {[%emt 0:00:01]} 37. Rxc3 {[%emt 0:00:03]} Bxc3 {[%emt 0:
00:01]} 38. Bxd1 {[%emt 0:00:01]} Kg7 {[%emt 0:00:02]} 39. f4 {[%emt 0:00:04]}
Kf6 {[%emt 0:00:01]} 40. Bb3 {[%emt 0:00:01]} Kg7 {[%emt 0:00:02]} 41. Kf3 {
[%emt 0:00:02]} Kf8 {[%emt 0:00:01]} 42. Ke3 {[%emt 0:00:02]} Ke8 {[%emt 0:00:
01]} 43. Bc2 {[%emt 0:00:01]} Bb2 {[%emt 0:00:07]} 44. a4 {[%emt 0:00:01]} Ba3
{[%emt 0:00:02]} 45. b5 {[%emt 0:00:01]} Bc5+ {[%emt 0:00:00]} 46. Kf3 {
[%emt 0:00:02]} h6 {[%emt 0:00:05]} 47. Bxf5 {[%emt 0:00:01]} Kd8 {[%emt 0:00:
00]} 48. g4 {[%emt 0:00:01]} Kc7 {[%emt 0:00:03]} 49. h4 {[%emt 0:00:02]} Kd8 {
[%emt 0:00:04]} 50. Ke4 {[%emt 0:00:03]} Ke8 {[%emt 0:00:02]} 51. g5 {[%emt 0:
00:02]} hxg5 {[%emt 0:00:01]} 52. fxg5 {[%emt 0:00:03]} Kf8 {[%emt 0:00:02]}
53. h5 {[%emt 0:00:03]} Bb6 {[%emt 0:00:06]} 54. h6 {[%emt 0:00:04]} Ba5 {
[%emt 0:00:01]} 55. g6 {[%emt 0:00:02]} Bc3 {[%emt 0:00:02]} 56. Bg4 {[%emt 0:
00:02]} Bd2 {[%emt 0:00:02]} 57. h7 {[%emt 0:00:04]} Kg7 58. Kd5 {[%emt 0:00:
02]} Bc3 {[%emt 0:00:01]} 59. Bf5 {[%emt 0:00:01]} Kh6 {[%emt 0:00:05]} 60. Kc6
{[%emt 0:00:00]} Kg5 {[%emt 0:00:01]} 61. Bd3 {[%emt 0:00:01]} Kf4 {[%emt 0:00:
03]} 62. Kd7 {[%emt 0:00:01]} Bf6 {[%emt 0:00:02]} 63. Ke8 {[%emt 0:00:01]} Ke5
{[%emt 0:00:01]} 64. Kf7 {[%emt 0:00:01]} Kd4 {[%emt 0:00:03]} 65. Bb1 {
[%emt 0:00:01]} Kc5 {[%emt 0:00:03]} 66. g7 {[%emt 0:00:01]} Kb4 {[%emt 0:00:
02]} 67. h8=Q {[%emt 0:00:02]} 1-0

[Event "FIDE Women World Blitz 2021"]
[Site "Warsaw"]
[Date "2021.12.29"]
[Round "6.7"]
[White "Gil Quilez, Sonia"]
[Black "Zabrzanska, Weronika"]
[Result "1-0"]
[ECO "D56"]
[WhiteElo "2122"]
[BlackElo "1596"]
[Annotator "NA"]
[PlyCount "65"]
[EventDate "2021.12.29"]
[EventType "swiss"]
[EventCountry "POL"]
[Tiebreak "Cut1 Buchholz"]
[SourceTitle "playchess.com"]
[Source "ChessBase"]
[SourceQuality "1"]
[TimeControl "180+2"]

1. d4 {[%emt 0:00:01]} Nf6 {[%emt 0:00:02]} 2. c4 {[%emt 0:00:00]} e6 {[%emt 0:
00:02]} 3. Nc3 {[%emt 0:00:01]} d5 {[%emt 0:00:01]} 4. Bg5 {[%emt 0:00:02]} Be7
{[%emt 0:00:01]} 5. e3 {[%emt 0:00:01]} O-O {[%emt 0:00:02]} 6. Nf3 {[%emt 0:
00:01]} h6 {[%emt 0:00:01]} 7. Bh4 {[%emt 0:00:00]} c6 {[%emt 0:00:04]} 8. Rc1
{[%emt 0:00:05]} Ne4 {[%emt 0:00:07]} 9. Bxe7 {[%emt 0:00:03]} Qxe7 {[%emt 0:
00:01]} 10. Qc2 {[%emt 0:00:04]} f5 {[%emt 0:00:12]} 11. Ne5 {[%emt 0:00:01]}
Qf6 {[%emt 0:00:07]} 12. Be2 {[%emt 0:00:37]} Nd7 {[%emt 0:00:23]} 13. Nxd7 {
[%emt 0:00:02]} Bxd7 {[%emt 0:00:02]} 14. O-O {[%emt 0:00:03]} e5 {[%emt 0:00:
09]} 15. dxe5 {[%emt 0:00:13]} Qxe5 {[%emt 0:00:03]} 16. cxd5 {[%emt 0:00:03]}
cxd5 {[%emt 0:00:23]} 17. Rfd1 {[%emt 0:00:01]} Bc6 {[%emt 0:00:06]} 18. Qb3 {
[%emt 0:00:05]} Rad8 {[%emt 0:00:07]} 19. Bf3 {[%emt 0:00:11]} Kh8 {[%emt 0:00:
05]} 20. Nb5 {[%emt 0:00:07]} f4 {[%emt 0:00:14]} 21. exf4 {[%emt 0:00:17]}
Rxf4 {[%emt 0:00:18]} 22. Nxa7 {[%emt 0:00:06]} Rdf8 {[%emt 0:00:30]} 23. Nxc6
{[%emt 0:00:04]} bxc6 {[%emt 0:00:01]} 24. Rd3 {[%emt 0:00:19]} Qg5 {[%emt 0:
00:05]} 25. Bxe4 {[%emt 0:00:18]} Rxf2 {[%emt 0:00:19]} 26. Rcd1 {[%emt 0:00:
16]} dxe4 {[%emt 0:00:04]} 27. Rg3 {[%emt 0:00:01]} Qf4 {[%emt 0:00:17]} 28. h3
{[%emt 0:00:06]} e3 {[%emt 0:00:07]} 29. Qxe3 {[%emt 0:00:04]} Rf1+ {[%emt 0:
00:02]} 30. Rxf1 {[%emt 0:00:01]} Qxf1+ {[%emt 0:00:01]} 31. Kh2 {[%emt 0:00:
00]} Qf6 {[%emt 0:00:03]} 32. Qc3 {[%emt 0:00:06]} Qd6 {[%emt 0:00:01]} 33.
Qxg7# {[%emt 0:00:02]} 1-0

[Event "FIDE Women World Blitz 2021"]
[Site "Warsaw"]
[Date "2021.12.29"]
[Round "6.8"]
[White "Vantika Agrawal"]
[Black "Babiy, Olga"]
[Result "1/2-1/2"]
[ECO "D27"]
[WhiteElo "2329"]
[BlackElo "2179"]
[Annotator "NA"]
[PlyCount "108"]
[EventDate "2021.12.29"]
[EventType "swiss"]
[EventCountry "POL"]
[Tiebreak "Cut1 Buchholz"]
[SourceTitle "playchess.com"]
[Source "ChessBase"]
[SourceQuality "1"]
[TimeControl "180+2"]

1. d4 {[%emt 0:00:01]} d5 {[%emt 0:00:00]} 2. c4 {[%emt 0:00:00]} dxc4 {
[%emt 0:00:01]} 3. Nf3 {[%emt 0:00:02]} Nf6 {[%emt 0:00:01]} 4. e3 e6 5. Bxc4 {
[%emt 0:00:03]} a6 {[%emt 0:00:00]} 6. O-O {[%emt 0:00:04]} c5 {[%emt 0:00:01]}
7. e4 {[%emt 0:00:03]} cxd4 {[%emt 0:00:03]} 8. e5 {[%emt 0:00:02]} Nfd7 {
[%emt 0:00:01]} 9. Qxd4 {[%emt 0:00:35]} Nc6 {[%emt 0:00:03]} 10. Qe4 {[%emt 0:
00:12]} Qc7 {[%emt 0:00:01]} 11. Bf4 {[%emt 0:00:05]} Be7 {[%emt 0:00:05]} 12.
Qe2 {[%emt 0:00:14]} b5 {[%emt 0:00:08]} 13. Bb3 {[%emt 0:00:02]} Bb7 {[%emt 0:
00:01]} 14. Nc3 {[%emt 0:00:03]} O-O {[%emt 0:00:05]} 15. Rac1 {[%emt 0:00:05]}
Rfd8 {[%emt 0:00:04]} 16. Ne4 {[%emt 0:00:04]} Qb8 {[%emt 0:00:22]} 17. Nd6 {
[%emt 0:00:05]} Na5 {[%emt 0:00:20]} 18. Nxb7 {[%emt 0:00:54]} Nxb3 {[%emt 0:
00:15]} 19. Nxd8 {[%emt 0:00:11]} Nxc1 {[%emt 0:00:01]} 20. Rxc1 {[%emt 0:00:
04]} Qxd8 {[%emt 0:00:04]} 21. Qc2 {[%emt 0:00:02]} Qe8 {[%emt 0:00:12]} 22. h4
{[%emt 0:00:05]} Nb6 {[%emt 0:00:04]} 23. Qe4 {[%emt 0:00:11]} Nd5 {[%emt 0:00:
07]} 24. Bg5 {[%emt 0:00:03]} Rc8 {[%emt 0:00:06]} 25. Rd1 {[%emt 0:00:04]} h6
{[%emt 0:00:04]} 26. Bc1 {[%emt 0:00:14]} Rc4 {[%emt 0:00:02]} 27. Qe2 {
[%emt 0:00:07]} Bxh4 {[%emt 0:00:17]} 28. Nd4 {[%emt 0:00:06]} Qc8 {[%emt 0:00:
16]} 29. Be3 {[%emt 0:00:09]} Bg5 {[%emt 0:00:05]} 30. Bxg5 hxg5 {[%emt 0:00:
01]} 31. Qg4 {[%emt 0:00:06]} Qc5 {[%emt 0:00:05]} 32. b3 {[%emt 0:00:04]} Rc1
{[%emt 0:00:06]} 33. Rxc1 {[%emt 0:00:02]} Qxc1+ {[%emt 0:00:01]} 34. Kh2 {
[%emt 0:00:01]} Qd2 {[%emt 0:00:24]} 35. Nxe6 {[%emt 0:00:04]} fxe6 {[%emt 0:
00:08]} 36. Qxe6+ {[%emt 0:00:01]} Kh7 {[%emt 0:00:06]} 37. Qf5+ {[%emt 0:00:
02]} Kh6 {[%emt 0:00:02]} 38. Qh3+ {[%emt 0:00:02]} Kg6 {[%emt 0:00:02]} 39.
Qe6+ {[%emt 0:00:01]} Kh7 {[%emt 0:00:01]} 40. Qh3+ {[%emt 0:00:02]} Kg6 {
[%emt 0:00:02]} 41. Qe6+ {[%emt 0:00:02]} Kh7 {[%emt 0:00:01]} 42. Qh3+ {
[%emt 0:00:01]} Kg8 {[%emt 0:00:01]} 43. Qe6+ {[%emt 0:00:04]} Kf8 {[%emt 0:00:
07]} 44. Qd6+ {[%emt 0:00:03]} Ke8 {[%emt 0:00:06]} 45. Qc6+ {[%emt 0:00:02]}
Ke7 {[%emt 0:00:05]} 46. Qd6+ {[%emt 0:00:01]} Ke8 {[%emt 0:00:01]} 47. Qc6+ {
[%emt 0:00:01]} Ke7 {[%emt 0:00:00]} 48. Qd6+ {[%emt 0:00:01]} Ke8 {[%emt 0:00:
02]} 49. Qc6+ {[%emt 0:00:02]} Kd8 {[%emt 0:00:05]} 50. Qd6+ {[%emt 0:00:01]}
Ke8 {[%emt 0:00:07]} 51. Qc6+ {[%emt 0:00:02]} Kf7 {[%emt 0:00:09]} 52. Qd7+ {
[%emt 0:00:01]} Kg6 {[%emt 0:00:07]} 53. Qe6+ {[%emt 0:00:01]} Kh7 {[%emt 0:00:
04]} 54. Qh3+ {[%emt 0:00:02]} Kg6 {[%emt 0:00:01]} 1/2-1/2